bitfinex/quotes_SOLUSD_20250917
["timestamp","ask_amount","ask_price","bid_price","bid_amount"]
[1758144142575,4.24373841,239.03,238.99,5.03728983]
[1758144143282,0.06,239.03,239.0,5.03728983]
[1758144143484,0.06,239.03,239.0,5.71728983]
[1758144144187,4.24359002,239.03,238.95,33.74]
[1758144144361,0.7,239.02,238.95,38.77728983]
[1758144144567,4.18392535,239.01,238.95,38.77728983]
[1758144144880,5.03728983,238.98,238.92,4.1853321]
[1758144145095,26.0,238.98,238.88,0.03]
[1758144145270,0.28432314,238.98,238.94,5.03728983]
[1758144145474,0.28432314,238.99,238.95,5.71728983]
[1758144145678,0.28432314,238.99,238.95,0.68]
[1758144145899,26.0,239.0,238.95,5.71728983]
[1758144146070,26.0,239.01,238.95,5.03728983]
[1758144146266,0.06,239.03,239.0,5.03728983]
[1758144146463,0.06,239.03,239.02,5.03728983]
[1758144146669,0.06,239.03,239.02,5.71728983]
[1758144147290,0.06,239.03,239.02,9.90104014]
[1758144147692,0.06,239.03,239.02,0.68]
[1758144147878,0.06,239.03,239.01,5.03728983]
[1758144148297,0.06,239.03,239.02,1.09837503]
[1758144148590,0.06,239.03,239.02,0.68]
[1758144148799,0.06,239.03,239.02,4.86375031]
[1758144149275,0.06,239.03,239.02,18.45934432]
[1758144150387,4.180602,239.2,239.06,39.59559401]
[1758144150596,6.96894214,239.2,239.16,5.03728983]
[1758144150786,0.98432314,239.19,239.16,5.03728983]
[1758144151098,0.98432314,239.19,239.07,46.69481189]
[1758144151099,26.0,239.17,239.07,0.68]
[1758144151288,2.78834014,239.16,239.13,5.03728983]
[1758144151489,4.88046733,239.21,239.15,5.03728983]
[1758144151680,4.88046733,239.21,239.17,5.03728983]
[1758144151887,0.28432314,239.18,239.11,5.71728983]
[1758144152085,0.28432314,239.17,239.11,0.68]
[1758144152487,0.28432314,239.12,239.04,34.62]
[1758144152700,9.21950654,239.11,239.04,38.80330844]
[1758144152900,4.18221671,239.11,239.05,0.66]
[1758144153204,0.28432314,239.12,239.05,0.66]
[1758144153896,0.28432314,239.12,239.05,5.69728983]
[1758144154079,0.28432314,239.12,239.06,0.66]
[1758144154896,0.28432314,239.12,239.06,4.84293857]
[1758144155410,4.46620573,239.13,239.06,4.84293857]
[1758144155788,4.46620573,239.13,239.05,5.03728983]
[1758144155789,0.28432314,239.1,239.03,34.6]
[1758144156098,0.98432314,239.1,239.03,0.66]
[1758144156807,4.1825254,239.09,239.03,0.66]
[1758144157110,9.21981523,239.09,239.03,0.66]
[1758144158900,3.48878302,239.1,239.03,4.84355655]
[1758144159080,4.88238981,239.1,239.03,0.66]
[1758144159604,4.88238981,239.1,239.03,4.84347128]
[1758144160491,4.18238981,239.1,239.03,4.84347128]
[1758144162404,4.18238981,239.1,239.03,4.84356516]
[1758144162908,4.18238981,239.1,239.03,9.88085499]
[1758144164594,7.82607285,239.11,239.07,5.03728983]
[1758144164595,2.78878302,239.11,239.07,5.03728983]
[1758144164807,6.97425514,239.14,239.07,5.69728983]
[1758144165283,0.7,239.13,239.07,5.69728983]
[1758144165603,6.97425514,239.14,239.08,0.66]
[1758144165809,4.18165091,239.14,239.09,5.03728983]
[1758144166121,7.6739682,239.16,239.1,5.69728983]
[1758144166424,4.88136397,239.16,239.1,5.69728983]
[1758144166591,6.9737645,239.17,239.11,4.18217556]
[1758144166792,2.79260423,239.17,239.13,5.03728983]
[1758144167101,0.06,239.18,239.14,5.03728983]
[1758144167290,4.24101831,239.18,239.14,5.03728983]
[1758144168298,4.24101831,239.18,239.13,5.69728983]
[1758144168618,4.24101831,239.18,239.11,4.18217556]
[1758144168619,0.06,239.18,239.14,9.87891386]
[1758144168791,0.06,239.18,239.15,5.69728983]
[1758144169203,0.06,239.18,239.15,5.03728983]
[1758144169918,0.06,239.18,239.16,0.66]
[1758144170412,0.06,239.18,239.15,5.03728983]
[1758144171105,0.06,239.18,239.15,5.69728983]
[1758144171319,0.06,239.18,239.16,0.66]
[1758144171819,0.06,239.18,239.17,5.69728983]
[1758144173401,0.06,239.18,239.17,9.87841622]
[1758144174498,0.06,239.18,239.17,9.21841622]
[1758144174703,0.06,239.18,239.17,9.87841622]
[1758144176203,0.06,239.18,239.17,5.69728983]
[1758144176410,0.06,239.18,239.17,9.87841622]
[1758144177513,0.06,239.18,239.17,4.84112639]
[1758144177709,0.06,239.18,239.17,6.90939576]
[1758144178302,0.06,239.18,239.17,5.25923902]
[1758144178524,0.06,239.18,239.17,6.90939576]
[1758144179410,0.06,239.18,239.17,40.56939576]
[1758144180427,0.06,239.18,239.17,6.90939576]
[1758144180733,0.06,239.18,239.16,8.27307748]
[1758144180734,0.06,239.18,239.16,33.64]
[1758144180932,0.06,239.18,239.17,2.06826937]
[1758144181635,0.06,239.18,239.14,4.85147618]
[1758144181834,0.75,239.18,239.16,2.06826937]
[1758144182004,0.06,239.18,239.16,2.06826937]
[1758144182808,0.06,239.18,239.14,4.18147618]
[1758144183008,0.06,239.18,239.16,2.06826937]
[1758144184010,0.67,239.17,239.1,0.68]
[1758144184212,0.67,239.17,239.12,2.06826937]
[1758144184414,0.67,239.16,239.12,2.06826937]
[1758144184631,0.67,239.15,239.08,0.68]
[1758144184937,2.79826937,239.18,239.11,2.06826937]
[1758144185116,6.97925686,239.18,239.11,2.06826937]
[1758144185441,0.67,239.17,239.13,2.06826937]
[1758144185736,0.06,239.17,239.14,5.02915113]
[1758144187317,0.06,239.17,239.14,9.21079256]
[1758144187818,0.06,239.17,239.16,5.02915113]
[1758144189040,5.75915113,239.17,239.1,38.58915113]
[1758144189236,0.67,239.16,239.11,5.02915113]
[1758144189440,0.67,239.16,239.12,4.18200066]
[1758144190016,0.67,239.16,239.12,9.21115179]
[1758144190415,0.67,239.16,239.12,4.18200066]
[1758144190620,0.06,239.17,239.12,9.21115179]
[1758144190823,0.67,239.15,239.12,9.21115179]
[1758144191045,0.67,239.15,239.12,5.02915113]
[1758144191417,0.06,239.17,239.12,9.21107027]
[1758144191614,0.73,239.17,239.12,9.21107027]
[1758144191949,0.67,239.16,239.12,9.21107027]
[1758144192244,0.67,239.16,239.12,5.02915113]
[1758144192448,0.67,239.15,239.11,5.02915113]
[1758144193025,0.67,239.15,239.12,5.02915113]
[1758144193225,4.91118096,239.17,239.12,5.02915113]
[1758144193434,4.91118096,239.17,239.06,11.13740023]
[1758144193435,0.67,239.14,239.06,11.13740023]
[1758144193734,0.67,239.14,239.09,5.02915113]
[1758144194246,5.02915113,239.15,239.09,5.02915113]
[1758144194445,0.67,239.13,239.06,9.21212045]
[1758144194647,5.69915113,239.12,239.05,9.89236202]
[1758144194824,0.67,239.11,239.05,9.89236202]
[1758144195558,4.85235048,239.1,239.04,9.21254205]
[1758144195745,4.85235048,239.1,239.04,12.08832708]
[1758144197947,4.85235048,239.1,239.05,7.90493616]
[1758144198355,4.85235048,239.1,239.04,4.18339092]
[1758144198541,4.85235048,239.1,239.05,7.90493616]
[1758144198737,4.18235048,239.1,239.05,7.90493616]
[1758144198951,11.12455733,239.14,239.07,7.90493616]
[1758144199151,5.13614892,239.13,239.07,7.90493616]
[1758144199459,7.92997741,239.13,239.07,7.90493616]
[1758144200040,15.16491357,239.13,239.06,7.90493616]
[1758144200351,11.36939169,239.12,239.05,7.90493616]
[1758144200749,0.67,239.11,239.05,7.90493616]
[1758144201931,4.18235048,239.1,239.04,4.18338894]
[1758144202138,4.85235048,239.1,239.04,7.90493616]
[1758144202363,4.85235048,239.1,239.06,7.90493616]
[1758144202662,4.18235048,239.1,239.05,7.90493616]
[1758144202838,4.18235048,239.1,239.03,4.21346751]
[1758144202839,26.95432314,239.13,239.07,8.58493616]
[1758144203034,2.79510646,239.12,239.07,7.90493616]
[1758144203239,2.79510646,239.12,239.06,7.90493616]
[1758144203240,0.67,239.11,239.06,7.90493616]
[1758144203868,2.79510646,239.12,239.08,7.90493616]
[1758144204059,4.46598298,239.14,239.09,0.68]
[1758144204361,15.1660256,239.14,239.08,7.90493616]
[1758144204574,2.79510646,239.13,239.08,7.90493616]
[1758144204751,3.46510646,239.13,239.08,0.68]
[1758144205139,0.67,239.12,239.07,12.0877301]
[1758144205541,0.67,239.12,239.07,12.7677301]
[1758144207969,0.67,239.12,239.07,8.09776662]
[1758144209469,3.23497268,239.11,239.07,0.68]
[1758144209645,3.23497268,239.11,239.05,7.41817039]
[1758144209646,0.67,239.11,239.05,8.09817039]
[1758144209843,3.90497268,239.11,239.05,8.09817039]
[1758144210366,8.0872064,239.11,239.05,4.86319771]
[1758144210558,8.0872064,239.11,239.05,8.09817039]
[1758144213466,8.0872064,239.11,239.06,0.67]
[1758144213657,8.0872064,239.11,239.07,0.67]
[1758144214372,6.72307416,239.13,239.07,4.18284036]
[1758144214547,6.72307416,239.13,239.07,4.85284036]
[1758144214877,6.72307416,239.13,239.07,8.08781304]
[1758144215075,10.90491351,239.13,239.07,3.90497268]
[1758144215446,10.90491351,239.13,239.07,0.67]
[1758144215648,4.18217556,239.11,239.07,0.67]
[1758144217663,4.87217556,239.11,239.07,0.67]
[1758144219277,4.87217556,239.11,239.06,3.23497268]
[1758144219471,0.69,239.11,239.07,0.67]
[1758144219682,10.90506521,239.13,239.08,0.67]
[1758144219981,0.69,239.12,239.08,0.67]
[1758144220358,4.18217556,239.11,239.08,0.67]
[1758144220556,4.18217556,239.11,239.07,3.23497268]
[1758144220762,4.18217556,239.11,239.07,3.90497268]
[1758144221073,4.18217556,239.11,239.07,0.67]
[1758144221774,0.69,239.11,239.06,7.41798739]
[1758144221950,0.69,239.11,239.06,8.08798739]
[1758144222354,0.75,239.11,239.06,8.08798739]
[1758144222874,0.75,239.11,239.07,0.67]
[1758144223455,4.93219363,239.11,239.07,0.67]
[1758144223670,0.75,239.11,239.07,0.67]
[1758144224068,4.93219513,239.11,239.07,0.67]
[1758144224485,0.75,239.11,239.07,0.67]
[1758144225168,0.75,239.11,239.1,3.23497268]
[1758144225169,0.06,239.11,239.1,3.23497268]
[1758144225482,0.06,239.11,239.1,3.90497268]
[1758144226175,0.06,239.14,239.1,3.90497268]
[1758144226480,0.06,239.14,239.13,3.23497268]
[1758144226863,0.06,239.14,239.13,0.67]
[1758144227065,0.06,239.14,239.13,3.90497268]
[1758144227263,0.06,239.14,239.13,8.08679846]
[1758144229175,0.06,239.14,239.13,8.50498103]
[1758144231688,1e-08,239.14,239.13,22.10057504]
[1758144231889,1e-08,239.14,239.13,55.56057504]
[1758144237686,1e-08,239.14,239.13,5.27000835]
[1758144237894,1e-08,239.14,239.13,40.85679846]
[1758144238793,1e-08,239.14,239.13,41.57679846]
[1758144239169,1e-08,239.14,239.13,4.18182578]
[1758144239365,1e-08,239.14,239.13,40.85679846]
[1758144240595,1e-08,239.14,239.13,41.57679846]
[1758144241103,1e-08,239.14,239.13,40.85679846]
[1758144241404,1e-08,239.14,239.13,41.57679846]
[1758144241781,1e-08,239.14,239.13,40.85679846]
[1758144242700,1e-08,239.14,239.13,8.08679846]
[1758144242879,1e-08,239.14,239.13,41.52679846]
[1758144245689,0.68000001,239.14,239.13,40.85679846]
[1758144247932,1e-08,239.14,239.13,40.85679846]
[1758144248101,1e-08,239.14,239.13,41.52679846]
[1758144255414,1e-08,239.14,239.13,7.41679846]
[1758144255616,0.68000001,239.14,239.13,7.41679846]
[1758144255927,0.68000001,239.14,239.13,40.83679846]
[1758144256933,0.68000001,239.14,239.13,4.18182578]
[1758144257109,0.68000001,239.14,239.13,33.42]
[1758144257627,0.68000001,239.14,239.13,40.83679846]
[1758144257814,1e-08,239.14,239.13,39.67113474]
[1758144258610,1e-08,239.14,239.13,40.34113474]
[1758144259009,1e-08,239.14,239.13,53.93672875]
[1758144259210,1e-08,239.16,239.14,13.59559401]
[1758144259516,1e-08,239.16,239.15,43.7465448]
[1758144259710,1e-08,239.16,239.15,44.4165448]
[1758144260234,0.68,239.25,239.18,26.0]
[1758144260433,0.68,239.25,239.24,2.06930896]
[1758144260639,0.68,239.25,239.24,39.64921198]
[1758144263827,0.68,239.25,239.24,35.46930896]
[1758144264249,0.68,239.25,239.24,39.64921198]
[1758144264746,0.68,239.25,239.24,6.24921198]
[1758144265040,0.68,239.25,239.24,39.64921198]
[1758144265636,0.68,239.25,239.24,6.24921198]
[1758144265832,0.68,239.25,239.24,39.64921198]
[1758144266030,0.68,239.25,239.24,6.24921198]
[1758144266230,0.68,239.25,239.24,2.06930896]
[1758144266434,0.68,239.25,239.23,2.06930896]
[1758144266761,4.17932193,239.28,239.23,33.4]
[1758144267243,0.68,239.27,239.23,35.46930896]
[1758144267440,0.68,239.26,239.24,2.06930896]
[1758144267841,0.68,239.25,239.24,2.06930896]
[1758144269321,0.68,239.25,239.24,4.17990302]
[1758144269524,0.68,239.25,239.24,37.55990302]
[1758144270345,2.79376866,239.27,239.24,39.62921198]
[1758144270547,0.68,239.26,239.24,39.62921198]
[1758144271419,2.79376866,239.29,239.25,2.73930896]
[1758144271748,0.68,239.29,239.26,33.38]
[1758144271934,0.68,239.29,239.28,2.06930896]
[1758144272829,0.68,239.29,239.27,6.24858862]
[1758144273049,0.7,239.28,239.27,4.17927966]
[1758144273657,2.79376866,239.31,239.27,4.17927966]
[1758144273833,0.7,239.31,239.28,35.44930896]
[1758144274230,0.7,239.31,239.29,6.24833858]
[1758144274452,3.49376866,239.31,239.29,6.24833858]
[1758144274755,0.7,239.31,239.29,6.24833858]
[1758144275425,0.7,239.31,239.29,39.62833858]
[1758144275621,0.7,239.31,239.28,2.06930896]
[1758144275830,0.7,239.31,239.29,33.38]
[1758144276355,0.7,239.33,239.3,4.17885499]
[1758144276530,2.79376866,239.32,239.3,4.17885499]
[1758144276732,3.49376866,239.32,239.3,4.17885499]
[1758144276931,0.7,239.32,239.3,4.17885499]
[1758144277434,2.79376866,239.33,239.3,4.17885499]
[1758144277634,4.17798028,239.36,239.3,4.17885499]
[1758144277635,0.7,239.32,239.3,4.17885499]
[1758144279259,2.79376866,239.34,239.3,4.17885499]
[1758144279447,29.56816287,239.38,239.33,2.06930896]
[1758144279448,2.79376866,239.37,239.33,2.06930896]
[1758144279749,3.49376866,239.37,239.34,2.06930896]
[1758144280140,2.79376866,239.37,239.34,2.06930896]
[1758144280330,0.1,239.38,239.34,2.06930896]
[1758144280331,2.89376866,239.38,239.34,2.06930896]
[1758144280537,0.7,239.36,239.34,2.06930896]
[1758144280743,0.7,239.37,239.34,2.06930896]
[1758144280925,0.7,239.37,239.35,2.06930896]
[1758144281121,0.7,239.36,239.35,2.06930896]
[1758144281462,0.8,239.38,239.35,2.06930896]
[1758144281753,0.7,239.37,239.34,2.06930896]
[1758144281959,0.7,239.36,239.34,2.06930896]
[1758144282256,0.7,239.35,239.33,33.36]
[1758144282938,0.7,239.34,239.28,4.17920427]
[1758144283262,0.7,239.34,239.29,33.36]
[1758144283429,0.7,239.33,239.29,33.36]
[1758144283630,0.7,239.32,239.29,33.36]
[1758144284125,0.7,239.31,239.27,2.06930896]
[1758144284329,0.7,239.31,239.28,33.34]
[1758144284563,0.7,239.33,239.28,33.34]
[1758144284761,2.79376866,239.34,239.28,36.12930896]
[1758144284935,6.24743631,239.35,239.28,36.12930896]
[1758144285135,0.7,239.34,239.28,36.12930896]
[1758144285556,4.87828396,239.34,239.28,6.96851061]
[1758144285752,4.87828396,239.34,239.29,33.34]
[1758144285954,0.7,239.33,239.29,33.34]
[1758144286157,0.7,239.33,239.29,34.06]
[1758144286340,4.17828396,239.34,239.29,36.12930896]
[1758144286655,4.87828396,239.34,239.29,36.12930896]
[1758144288163,2.79376866,239.37,239.33,2.06930896]
[1758144288376,0.1,239.38,239.36,2.06930896]
[1758144289362,0.8,239.38,239.35,2.06930896]
[1758144290059,0.1,239.38,239.35,0.72]
[1758144290841,0.1,239.38,239.36,0.72]
[1758144291062,0.1,239.38,239.33,4.17819128]
[1758144291063,0.1,239.38,239.34,34.06]
[1758144291566,0.1,239.38,239.35,0.72]
[1758144291737,0.1,239.38,239.36,0.72]
[1758144293063,0.1,239.38,239.36,4.89779527]
[1758144293837,0.1,239.38,239.34,38.23799676]
[1758144294038,0.1,239.38,239.35,0.72]
[1758144294244,0.1,239.38,239.34,33.34]
[1758144294453,0.7,239.37,239.34,33.34]
[1758144294638,0.1,239.38,239.34,38.23815453]
[1758144294839,0.1,239.38,239.34,37.51815453]
[1758144295058,0.1,239.38,239.35,0.72]
[1758144295358,0.8,239.38,239.34,33.34]
[1758144295564,0.8,239.38,239.34,37.51812118]
[1758144295744,0.1,239.38,239.34,37.51812118]
[1758144295947,0.1,239.38,239.35,0.72]
[1758144296151,0.1,239.38,239.36,0.72]
[1758144296554,0.1,239.38,239.37,0.72]
[1758144297047,0.1,239.38,239.35,4.89789574]
[1758144297354,0.1,239.38,239.36,0.72]
[1758144297543,4.95748628,239.38,239.34,33.34]
[1758144297942,4.95748628,239.38,239.32,0.68]
[1758144298155,4.95748628,239.38,239.33,35.38930896]
[1758144298346,4.95748628,239.38,239.34,0.68]
[1758144298546,4.27748628,239.38,239.34,0.68]
[1758144298753,4.27748628,239.38,239.34,2.74930896]
[1758144299470,0.1,239.38,239.34,2.74930896]
[1758144299673,4.27745852,239.38,239.34,2.74930896]
[1758144300548,4.27745852,239.38,239.28,12.51689515]
[1758144300550,0.68,239.37,239.29,0.68]
[1758144300747,2.06930896,239.32,239.25,0.68]
[1758144300966,2.74930896,239.32,239.25,33.98]
[1758144301357,6.92788933,239.32,239.25,38.15956604]
[1758144301555,3.48259134,239.34,239.26,2.74930896]
[1758144301776,6.98062786,239.35,239.28,2.06930896]
[1758144301970,6.98062786,239.35,239.29,0.68]
[1758144302176,9.72993682,239.35,239.29,0.68]
[1758144302859,9.72993682,239.35,239.27,2.06930896]
[1758144303177,0.67,239.34,239.28,2.74930896]
[1758144303369,3.47259134,239.34,239.29,4.17902962]
[1758144303548,3.47259134,239.34,239.29,6.92833858]
[1758144303748,0.67,239.34,239.29,6.24833858]
[1758144303980,2.80259134,239.37,239.32,2.06930896]
[1758144304163,2.80259134,239.37,239.32,2.74930896]
[1758144304164,7.65023908,239.37,239.32,2.74930896]
[1758144304481,2.80259134,239.37,239.35,2.06930896]
[1758144304652,0.1,239.38,239.35,2.74930896]
[1758144304975,0.1,239.38,239.36,2.06930896]
[1758144305182,0.1,239.38,239.37,2.06930896]
[1758144305358,0.1,239.38,239.36,2.06930896]
[1758144305558,0.1,239.38,239.36,6.24710037]
[1758144306080,0.1,239.38,239.37,0.68]
[1758144306287,0.1,239.38,239.37,2.74930896]
[1758144306481,0.1,239.38,239.37,2.06930896]
[1758144307390,0.1,239.38,239.37,6.92694191]
[1758144308972,0.77,239.38,239.33,0.68]
[1758144309159,0.77,239.38,239.29,0.68]
[1758144309160,2.06930896,239.36,239.29,0.68]
[1758144309467,4.17815659,239.34,239.29,33.3]
[1758144309854,4.84815659,239.34,239.29,0.68]
[1758144310051,0.67,239.33,239.29,2.06930896]
[1758144310278,0.67,239.32,239.27,2.74930896]
[1758144310557,4.84815659,239.34,239.28,0.68]
[1758144311979,4.84815659,239.34,239.28,2.74930896]
[1758144312283,0.67,239.33,239.26,35.34930896]
[1758144312451,5.5419003,239.33,239.25,0.68]
[1758144312657,2.06930896,239.32,239.25,2.74930896]
[1758144312882,2.73930896,239.32,239.25,2.74930896]
[1758144313891,2.80259134,239.33,239.28,2.06930896]
[1758144314059,3.47259134,239.36,239.3,2.06930896]
[1758144314259,2.80259134,239.35,239.3,2.06930896]
[1758144314459,2.80259134,239.34,239.31,2.06930896]
[1758144314655,2.80259134,239.35,239.31,2.06930896]
[1758144314860,2.80259134,239.34,239.32,2.74930896]
[1758144315083,2.80259134,239.37,239.32,2.06930896]
[1758144315381,3.47259134,239.36,239.3,2.06930896]
[1758144315680,3.47259134,239.35,239.3,2.06930896]
[1758144315891,2.80259134,239.34,239.3,2.06930896]
[1758144316073,2.80259134,239.33,239.3,2.06930896]
[1758144316273,3.47259134,239.33,239.3,2.06930896]
[1758144316475,0.67,239.33,239.3,2.06930896]
[1758144316687,3.47259134,239.33,239.3,2.06930896]
[1758144316860,0.67,239.32,239.27,2.06930896]
[1758144317059,0.67,239.32,239.26,0.68]
[1758144317256,3.47259134,239.32,239.27,2.06930896]
[1758144317462,0.67,239.32,239.27,2.74930896]
[1758144317670,2.80259134,239.32,239.28,2.74930896]
[1758144317869,2.80259134,239.33,239.29,2.06930896]
[1758144318079,2.80259134,239.32,239.29,2.06930896]
[1758144318278,2.80259134,239.33,239.29,2.06930896]
[1758144318471,2.80259134,239.32,239.29,2.74930896]
[1758144318672,2.80259134,239.33,239.29,2.74930896]
[1758144318992,2.80259134,239.32,239.29,2.74930896]
[1758144319222,2.80259134,239.33,239.29,2.74930896]
[1758144319492,2.80259134,239.32,239.29,6.92830136]
[1758144319687,2.80259134,239.33,239.29,6.92830136]
[1758144319861,2.80259134,239.33,239.29,8.08791836]
[1758144320362,3.47259134,239.33,239.29,8.08791836]
[1758144320557,7.6509346,239.33,239.29,3.22892596]
[1758144320862,4.84834326,239.33,239.29,3.22892596]
[1758144321284,2.80259134,239.32,239.29,3.22892596]
[1758144322192,0.67,239.33,239.29,3.22892596]
[1758144322398,3.47259134,239.33,239.29,3.22892596]
[1758144322772,2.80259134,239.35,239.3,3.90892596]
[1758144322982,3.47259134,239.34,239.31,3.22892596]
[1758144323309,0.67,239.34,239.3,0.68]
[1758144323508,0.67,239.34,239.3,3.22892596]
[1758144323509,3.47259134,239.34,239.3,3.22892596]
[1758144323888,3.47259134,239.34,239.29,4.17898677]
[1758144324101,3.47259134,239.34,239.3,3.22892596]
[1758144325590,3.47259134,239.34,239.3,7.40762102]
[1758144325913,2.80259134,239.36,239.33,3.22892596]
[1758144326090,2.80259134,239.37,239.35,3.22892596]
[1758144326719,2.80259134,239.37,239.36,3.22892596]
[1758144327405,0.1,239.38,239.36,3.22892596]
[1758144327701,2.90259134,239.38,239.37,3.22892596]
[1758144327911,0.1,239.38,239.37,3.22892596]
[1758144328116,2.90259134,239.38,239.34,4.85799316]
[1758144328410,2.90259134,239.38,239.37,3.22892596]
[1758144328411,0.1,239.38,239.37,3.22892596]
[1758144328602,2.90259134,239.38,239.37,3.22892596]
[1758144328799,0.1,239.38,239.35,3.90892596]
[1758144329005,0.67,239.37,239.33,3.22892596]
[1758144329201,0.67,239.36,239.3,0.68]
[1758144329384,3.47259134,239.36,239.31,3.22892596]
[1758144329585,0.67,239.35,239.31,3.22892596]
[1758144330097,3.47259134,239.37,239.32,3.22892596]
[1758144330422,2.80259134,239.36,239.32,3.22892596]
[1758144330582,4.84774911,239.37,239.32,3.22892596]
[1758144330783,0.67,239.36,239.32,3.22892596]
[1758144330977,4.17774911,239.37,239.29,4.17891682]
[1758144330978,0.67,239.35,239.31,3.22892596]
[1758144333106,4.84802319,239.35,239.31,3.22892596]
[1758144333407,4.17802319,239.35,239.31,3.92892596]
[1758144333586,6.99045113,239.37,239.32,3.92892596]
[1758144333786,7.66045113,239.37,239.32,3.92892596]
[1758144334012,7.66045113,239.37,239.33,0.7]
[1758144334404,7.66045113,239.37,239.32,3.22892596]
[1758144334587,7.66045113,239.37,239.32,3.92892596]
[1758144335094,0.06,239.36,239.32,3.92892596]
[1758144335494,4.23786926,239.36,239.32,3.92892596]
[1758144335700,0.73,239.36,239.32,0.7]
[1758144336184,3.22892596,239.34,239.25,0.7]
[1758144336407,3.22892596,239.31,239.25,0.7]
[1758144336593,3.89892596,239.31,239.25,0.7]
[1758144336785,6.71172288,239.31,239.25,0.7]
[1758144336986,3.89892596,239.31,239.25,0.7]
[1758144337203,4.17885499,239.3,239.25,0.7]
[1758144337514,3.89892596,239.31,239.25,0.7]
[1758144337515,0.67,239.31,239.25,8.10863787]
[1758144337691,3.48279692,239.31,239.25,8.10863787]
[1758144337889,8.07768569,239.31,239.25,0.7]
[1758144338798,4.84875973,239.31,239.25,3.92892596]
[1758144339003,8.07768569,239.31,239.25,3.92892596]
[1758144339293,4.84875973,239.31,239.25,3.92892596]
[1758144340915,4.84875973,239.31,239.26,3.22892596]
[1758144341210,4.84875973,239.31,239.27,3.22892596]
[1758144341402,3.48279692,239.34,239.3,3.22892596]
[1758144341606,2.81279692,239.35,239.31,3.22892596]
[1758144341810,2.81279692,239.34,239.31,3.22892596]
[1758144342016,3.48279692,239.34,239.31,3.22892596]
[1758144342315,0.67,239.34,239.31,3.22892596]
[1758144342495,0.67,239.34,239.28,0.7]
[1758144342496,4.17816465,239.34,239.28,0.7]
[1758144342697,0.67,239.33,239.29,3.22892596]
[1758144345413,3.89892596,239.32,239.25,7.40848135]
[1758144345615,0.67,239.31,239.25,3.22892596]
[1758144345797,3.89892596,239.31,239.24,8.10878605]
[1758144346596,3.89892596,239.31,239.25,0.7]
[1758144347502,4.17885499,239.3,239.25,0.7]
[1758144348091,4.84885499,239.3,239.25,0.7]
[1758144348602,0.67,239.29,239.25,0.7]
[1758144348810,4.17885499,239.3,239.25,0.7]
[1758144349010,4.84885499,239.3,239.25,0.7]
[1758144350720,4.84885499,239.3,239.25,3.92892596]
[1758144351110,4.17885499,239.3,239.25,3.92892596]
[1758144351309,0.67,239.29,239.25,3.92892596]
[1758144352528,2.81358618,239.31,239.27,3.22892596]
[1758144352728,4.90867772,239.32,239.27,3.92892596]
[1758144352928,0.67,239.31,239.27,3.22892596]
[1758144353138,0.67,239.3,239.26,3.22892596]
[1758144353301,0.67,239.3,239.26,3.92892596]
[1758144353709,2.81358618,239.31,239.27,3.22892596]
[1758144353934,3.48358618,239.31,239.27,3.92892596]
[1758144354118,0.67,239.31,239.27,3.22892596]
[1758144354427,0.67,239.31,239.28,3.22892596]
[1758144354724,0.06,239.32,239.27,3.22892596]
[1758144354930,7.66243003,239.31,239.27,3.22892596]
[1758144355233,7.66243003,239.31,239.27,3.92892596]
[1758144355525,0.67,239.3,239.27,3.22892596]
[1758144356407,3.48358618,239.3,239.27,3.22892596]
[1758144356604,0.67,239.3,239.27,3.22892596]
[1758144356807,6.99245648,239.3,239.25,6.11170366]
[1758144357030,0.67,239.29,239.25,6.11170366]
[1758144358229,4.1788703,239.3,239.25,6.11170366]
[1758144358420,7.70245648,239.3,239.25,6.11170366]
[1758144358608,4.8888703,239.3,239.25,6.11170366]
[1758144358810,7.70245648,239.3,239.25,6.11170366]
[1758144359008,4.8888703,239.3,239.25,6.11170366]
[1758144360219,0.71,239.3,239.26,0.7]
[1758144360737,4.88891394,239.3,239.26,0.7]
[1758144361409,4.88891394,239.3,239.25,5.41170366]